bitfinex/quotes_SOLUSD_20241127
["timestamp","ask_amount","ask_price","bid_price","bid_amount"]
[1732713670150,20.86737334,234.97,234.94,0.5042441]
[1732713670319,20.86737334,235.0,234.94,0.5042441]
[1732713670747,25.12267334,235.0,234.94,0.5042441]
[1732713670947,20.86737334,235.0,234.94,0.5042441]
[1732713671146,20.86737334,235.02,234.94,0.5042441]
[1732713671933,20.86737334,235.02,234.95,20.86737334]
[1732713672144,20.86737334,235.05,234.97,20.86737334]
[1732713672532,20.86737334,235.03,234.95,20.86737334]
[1732713672724,20.86737334,235.03,234.96,4.256]
[1732713673249,20.86737334,235.05,234.97,20.86737334]
[1732713673749,20.86737334,235.07,234.99,20.86737334]
[1732713674454,20.86737334,235.05,234.96,4.256]
[1732713674624,25.12187334,235.05,234.96,4.256]
[1732713676342,20.86737334,235.03,234.95,25.12347334]
[1732713677058,20.86737334,235.01,234.94,0.5042441]
[1732713678040,20.86737334,235.03,234.95,20.86737334]
[1732713678749,25.12187334,235.05,234.95,25.12337334]
[1732713678933,20.86737334,235.05,234.96,0.84887244]
[1732713679125,20.86737334,235.03,234.95,25.12337334]
[1732713679939,20.86737334,235.05,234.97,20.86737334]
[1732713680833,20.86737334,235.05,234.98,4.2556]
[1732713681024,20.86737334,235.05,234.94,0.5042441]
[1732713681227,20.86737334,235.03,234.96,25.12327334]
[1732713681425,20.86737334,235.01,234.94,0.5042441]
[1732713682234,20.86737334,234.99,234.94,0.5042441]
[1732713682541,20.86737334,234.95,234.94,0.5042441]
[1732713682845,19.8904,235.05,234.94,0.5042441]
[1732713682846,20.86737334,234.99,234.94,0.5042441]
[1732713683055,20.86737334,235.05,234.96,20.86737334]
[1732713683233,20.86737334,235.07,234.98,20.86737334]
[1732713683425,20.86737334,235.05,234.98,20.86737334]
[1732713684228,20.86737334,235.05,234.96,20.86737334]
[1732713684756,25.12187334,235.05,234.96,25.12337334]
[1732713685334,20.86737334,235.03,234.96,4.256]
[1732713685529,4.2545,235.05,234.94,22.22050543]
[1732713685530,20.86737334,234.99,234.94,0.5042441]
[1732713685961,20.86737334,234.97,234.94,0.5042441]
[1732713689451,20.86737334,234.99,234.94,0.5042441]
[1732713691634,20.86737334,234.95,234.94,0.5042441]
[1732713692056,20.86737334,234.97,234.94,0.5042441]
[1732713692551,20.86737334,234.99,234.94,0.5042441]
[1732713693159,20.86737334,235.01,234.94,4.7605441]
[1732713693458,0.2,235.05,234.96,20.86737334]
[1732713693459,20.86737334,235.05,234.96,20.86737334]
[1732713693641,20.86737334,235.03,234.96,20.86737334]
[1732713693850,25.12217334,235.03,234.96,20.86737334]
[1732713694038,25.12217334,235.03,234.96,25.12337334]
[1732713694653,20.86737334,235.03,234.96,25.12337334]
[1732713696643,20.86737334,235.01,234.94,0.5042441]
[1732713696854,20.86737334,234.98,234.94,0.5042441]
[1732713697369,20.86737334,235.02,234.94,21.37161744]
[1732713697860,25.12247334,235.02,234.94,4.7604441]
[1732713698066,25.12247334,235.02,234.94,0.5042441]
[1732713698767,20.86737334,235.0,234.94,0.5042441]
[1732713699061,20.86737334,234.98,234.94,0.5042441]
[1732713699962,25.12307334,234.98,234.94,0.5042441]
[1732713700158,20.86737334,235.0,234.94,0.5042441]
[1732713701056,20.86737334,235.02,234.95,20.86737334]
[1732713701251,20.86737334,235.08,234.99,20.86737334]
[1732713701660,4.4513,235.22,235.06,20.86737334]
[1732713701856,4.2526,235.15,235.06,20.86737334]
[1732713702240,4.2526,235.15,235.05,4.2543]
[1732713702445,13.03902885,235.14,235.05,17.29332885]
[1732713702665,13.03902885,235.12,235.03,13.03902885]
[1732713702872,4.2526,235.15,235.01,13.03902885]
[1732713702873,13.03902885,235.1,235.01,13.03902885]
[1732713703159,13.03902885,235.08,234.99,17.29442885]
[1732713703553,13.03902885,235.08,234.99,13.03902885]
[1732713703753,13.03902885,235.06,234.99,13.03902885]
[1732713703967,13.03902885,235.06,234.97,20.48322885]
[1732713703968,13.03902885,235.04,234.97,20.48322885]
[1732713704360,20.87980509,235.04,234.97,11.7]
[1732713704666,25.13400509,235.06,234.98,20.87980509]
[1732713705055,20.87980509,235.06,234.98,20.87980509]
[1732713705254,20.87980509,235.08,235.0,20.87980509]
[1732713705455,20.87980509,235.1,235.0,20.87980509]
[1732713705771,20.87980509,235.1,235.02,20.87980509]
[1732713706076,25.13340509,235.1,235.02,20.87980509]
[1732713706849,15.8313,235.16,235.04,20.87980509]
[1732713706850,20.87980509,235.12,235.04,20.87980509]
[1732713707061,20.87980509,235.16,235.06,20.87980509]
[1732713707268,20.87980509,235.16,235.08,20.87980509]
[1732713707473,20.87980509,235.18,235.1,20.87980509]
[1732713707772,18.4703,235.24,235.09,0.84854118]
[1732713707773,25.13150509,235.2,235.12,20.87980509]
[1732713707950,18.4703,235.24,235.12,20.87980509]
[1732713707951,20.87980509,235.22,235.12,25.13290509]
[1732713708149,20.87980509,235.22,235.12,20.87980509]
[1732713708752,20.87980509,235.2,235.12,20.87980509]
[1732713709775,20.87980509,235.2,235.12,25.13280509]
[1732713710475,25.13150509,235.2,235.12,25.13280509]
[1732713710865,25.13150509,235.2,235.12,20.87980509]
[1732713711166,20.87980509,235.16,235.09,8.104]
[1732713711556,20.87980509,235.16,235.08,44.25260509]
[1732713711557,20.87980509,235.13,235.08,19.119]
[1732713711761,20.87980509,235.09,235.03,7.4514]
[1732713711951,20.87980509,235.11,235.03,11.7061]
[1732713712245,20.87980509,235.11,235.03,7.4514]
[1732713713751,25.13320509,235.11,235.03,7.4514]
[1732713713952,20.87980509,235.07,234.97,48.83190509]
[1732713714165,20.87980509,235.05,234.97,53.08770509]
[1732713714377,20.87980509,235.07,234.97,53.08770509]
[1732713714584,20.87980509,235.07,234.99,20.87980509]
[1732713715254,4.254,235.08,235.01,20.87980509]
[1732713716381,20.87980509,235.07,234.99,20.87980509]
[1732713717776,20.87980509,235.07,234.97,48.83190509]
[1732713717975,20.87980509,235.05,234.97,48.83190509]
[1732713718369,4.2542,235.06,234.97,53.08760509]
[1732713719575,20.87980509,235.07,234.99,20.87980509]
[1732713719791,4.254,235.08,234.99,25.13520509]
[1732713720385,20.87980509,235.13,235.06,20.87980509]
[1732713720564,20.87980509,235.18,235.08,20.87980509]
[1732713721380,22.09,235.09,235.08,20.87980509]
[1732713721674,4.2526,235.15,235.08,20.87980509]
[1732713722257,20.87980509,235.14,235.06,20.87980509]
[1732713722473,20.87980509,235.14,235.05,4.2542]
[1732713722873,20.87980509,235.12,235.02,20.87980509]
[1732713723077,20.87980509,235.1,235.02,20.87980509]
[1732713723574,20.87980509,235.1,235.0,0.84876617]
[1732713723760,20.87980509,235.12,235.04,20.87980509]
[1732713724855,4.2533,235.11,235.04,20.87980509]
[1732713725273,20.87980509,235.19,235.1,20.87980509]
[1732713725478,4.2517,235.2,235.14,20.87980509]
[1732713725663,4.2515,235.22,235.16,20.87980509]
[1732713725861,4.2511,235.23,235.16,20.87980509]
[1732713726261,25.13070509,235.25,235.18,20.87980509]
[1732713726468,25.13070509,235.25,235.16,20.87980509]
[1732713727289,20.87980509,235.23,235.14,20.87980509]
[1732713728186,25.13070509,235.25,235.16,20.87980509]
[1732713728386,20.87980509,235.29,235.2,20.87980509]
[1732713728569,20.87980509,235.29,235.22,20.87980509]
[1732713729078,4.2502,235.28,235.2,20.87980509]
[1732713730385,4.2502,235.28,235.2,25.13140509]
[1732713730565,27.418,235.36,235.24,20.87980509]
[1732713730566,4.25,235.3,235.24,20.87980509]
[1732713730766,20.87980509,235.33,235.26,20.87980509]
[1732713730970,20.87980509,235.33,235.24,20.87980509]
[1732713731185,20.87980509,235.33,235.21,0.84800031]
[1732713731186,20.87980509,235.33,235.26,20.87980509]
[1732713731480,25.12890509,235.35,235.26,20.87980509]
[1732713732562,20.87980509,235.33,235.26,20.87980509]
[1732713732970,4.2491,235.35,235.23,30.6561]
[1732713733175,20.87980509,235.31,235.24,20.87980509]
[1732713733388,20.87980509,235.33,235.24,20.87980509]
[1732713733592,4.2473,235.44,235.32,20.87980509]
[1732713733885,30.0,235.33,235.32,20.87980509]
[1732713734086,30.0,235.33,235.31,20.87980509]
[1732713734464,30.0,235.33,235.31,25.12940509]
[1732713734786,20.87980509,235.45,235.31,25.12940509]
[1732713734987,10.617,235.48,235.32,20.87980509]
[1732713735204,20.87980509,235.41,235.34,20.87980509]
[1732713735494,20.87980509,235.43,235.34,20.87980509]
[1732713735677,20.87980509,235.41,235.34,20.87980509]
[1732713736373,25.12770509,235.41,235.34,20.87980509]
[1732713736576,25.12770509,235.41,235.32,20.87980509]
[1732713737294,20.87980509,235.43,235.34,20.87980509]
[1732713738080,20.87980509,235.45,235.35,0.84747643]
[1732713738271,20.87980509,235.45,235.37,20.87980509]
[1732713738471,25.12690509,235.45,235.37,20.87980509]
[1732713738681,4.2471,235.45,235.31,20.87980509]
[1732713738897,4.2471,235.45,235.3,7.8022]
[1732713738898,20.87980509,235.37,235.3,7.8022]
[1732713739188,20.87980509,235.35,235.27,20.87980509]
[1732713739396,20.87980509,235.37,235.29,20.87980509]
[1732713740177,15.065,235.45,235.29,20.87980509]
[1732713740386,20.87980509,235.38,235.29,25.12970509]
[1732713741774,20.87980509,235.36,235.27,20.87980509]
[1732713741981,20.87980509,235.31,235.24,7.8305]
[1732713742174,20.87980509,235.27,235.23,18.6854]
[1732713742372,20.87980509,235.29,235.22,20.87980509]
[1732713742575,20.87980509,235.33,235.24,20.87980509]
[1732713742996,30.0,235.34,235.24,20.87980509]
[1732713742997,20.87980509,235.31,235.24,20.87980509]
[1732713743172,20.87980509,235.31,235.22,20.87980509]
[1732713743571,25.12920509,235.33,235.24,25.13060509]
[1732713743774,30.0,235.34,235.28,20.87980509]
[1732713743975,30.0,235.34,235.26,20.87980509]
[1732713744180,20.87980509,235.33,235.26,20.87980509]
[1732713744374,20.87980509,235.31,235.24,25.13060509]
[1732713744691,30.0,235.34,235.26,20.87980509]
[1732713745490,25.12960509,235.31,235.22,25.13100509]
[1732713746070,20.87980509,235.29,235.2,20.87980509]
[1732713746274,20.87980509,235.31,235.22,20.87980509]
[1732713746685,20.87980509,235.31,235.24,20.87980509]
[1732713747484,25.12950509,235.31,235.21,4.2513]
[1732713747773,20.87980509,235.29,235.22,20.87980509]
[1732713747970,20.87980509,235.27,235.2,25.13130509]
[1732713748173,20.87980509,235.27,235.19,7.867]
[1732713749505,4.2506,235.26,235.19,7.867]
[1732713749871,20.87980509,235.29,235.2,20.87980509]
[1732713750074,20.87980509,235.29,235.19,12.96681564]
[1732713750075,20.87980509,235.31,235.22,20.87980509]
[1732713750475,30.0,235.34,235.26,20.87980509]
[1732713750799,20.87980509,235.35,235.28,20.87980509]
[1732713751376,20.87980509,235.35,235.28,25.12990509]
[1732713751681,25.12880509,235.35,235.26,25.13020509]
[1732713752397,20.87980509,235.39,235.3,20.87980509]
[1732713752602,20.87980509,235.39,235.32,20.87980509]
[1732713752903,20.87980509,235.41,235.32,20.87980509]
[1732713753202,20.87980509,235.39,235.32,20.87980509]
[1732713754687,20.87980509,235.39,235.32,25.12930509]
[1732713754886,20.87980509,235.41,235.32,25.12930509]
[1732713755206,20.87980509,235.43,235.34,20.87980509]
[1732713755576,19.0578,235.47,235.38,20.87980509]
[1732713755577,20.87980509,235.47,235.38,20.87980509]
[1732713755785,20.87980509,235.47,235.4,20.87980509]
[1732713757198,20.87980509,235.47,235.38,20.87980509]
[1732713757578,20.87980509,235.47,235.38,25.12810509]
[1732713758004,20.87980509,235.47,235.4,20.87980509]
[1732713758185,18.6795,235.55,235.42,20.87980509]
[1732713758186,25.12600509,235.51,235.42,20.87980509]
[1732713758390,25.12600509,235.51,235.44,20.87980509]
[1732713758598,20.87980509,235.55,235.46,20.87980509]
[1732713758804,20.87980509,235.55,235.48,20.87980509]
[1732713759307,20.87980509,235.57,235.48,20.87980509]
[1732713759504,20.87980509,235.57,235.5,20.87980509]
[1732713759892,4.2449,235.58,235.5,20.87980509]
[1732713760792,20.87980509,235.61,235.52,20.87980509]
[1732713761287,20.87980509,235.57,235.48,25.12630509]
[1732713761505,20.87980509,235.54,235.46,25.12660509]
[1732713761807,20.87980509,235.56,235.48,20.87980509]
[1732713762101,20.87980509,235.58,235.5,20.87980509]
[1732713762491,20.87980509,235.6,235.52,20.87980509]
[1732713762691,20.87980509,235.6,235.5,20.87980509]
[1732713762881,4.2442,235.62,235.5,20.87980509]
[1732713762882,20.87980509,235.58,235.5,20.87980509]
[1732713764082,20.87980509,235.58,235.51,4.2461]
[1732713765802,20.87980509,235.58,235.48,4.2465]
[1732713765803,20.87980509,235.56,235.48,4.2465]
[1732713766391,20.87980509,235.56,235.46,20.87980509]
[1732713766601,20.87980509,235.54,235.46,20.87980509]
[1732713766783,20.87980509,235.54,235.46,25.12670509]
[1732713766984,20.87980509,235.52,235.44,25.97382964]
[1732713767188,20.87980509,235.52,235.44,25.12700509]
[1732713768684,20.87980509,235.52,235.44,20.87980509]
[1732713768790,20.87980509,235.52,235.38,5.0]
[1732713768791,20.87980509,235.5,235.41,20.87980509]
[1732713769004,20.87980509,235.52,235.45,20.87980509]
[1732713769201,20.87980509,235.54,235.45,20.87980509]
[1732713770290,20.87980509,235.54,235.46,4.247]
[1732713772191,4.2444,235.6,235.46,4.247]
[1732713772430,20.87980509,235.59,235.49,40.54190509]
[1732713772732,20.87980509,235.61,235.53,20.87980509]
[1732713773235,20.87980509,235.61,235.54,0.84674592]
[1732713773819,20.87980509,235.61,235.53,20.87980509]
[1732713774415,20.87980509,235.61,235.53,25.12550509]
[1732713774610,20.87980509,235.57,235.5,0.84672088]
[1732713774827,20.87980509,235.57,235.49,40.54190509]
[1732713775513,20.87980509,235.59,235.51,20.87980509]
[1732713776328,25.12450509,235.59,235.51,20.87980509]
[1732713777721,25.12450509,235.59,235.51,25.12580509]
[1732713778319,12.98927008,235.58,235.5,12.98927008]
[1732713778522,12.98927008,235.58,235.5,17.23547008]
[1732713781042,12.98927008,235.58,235.51,5.09272551]
[1732713781232,12.98927008,235.64,235.55,12.98927008]
[1732713781435,12.98927008,235.64,235.57,12.98927008]
[1732713781634,17.23227008,235.68,235.59,12.98927008]
[1732713782056,12.98927008,235.7,235.61,12.98927008]
[1732713782225,12.98927008,235.7,235.63,12.98927008]
[1732713782547,12.98927008,235.65,235.54,12.98927008]
[1732713782737,12.98927008,235.63,235.57,0.84646551]
[1732713782923,12.98927008,235.63,235.56,17.23447008]
[1732713783125,12.98927008,235.63,235.55,7.5916]
[1732713783663,12.98927008,235.63,235.47,5.0]
[1732713783664,12.98927008,235.57,235.5,17.23547008]
[1732713784345,12.98927008,235.55,235.48,11.8381]
[1732713784670,12.98927008,235.53,235.48,7.5916]
[1732713784835,12.98927008,235.51,235.46,19.703]
[1732713786235,12.98927008,235.53,235.46,19.703]
[1732713786434,20.79214932,235.55,235.47,0.84706671]
[1732713786653,20.79214932,235.55,235.48,20.79214932]
[1732713786957,20.79214932,235.52,235.46,23.9499]
[1732713787245,20.79214932,235.52,235.46,19.703]
[1732713787642,20.79214932,235.5,235.46,19.703]
[1732713787947,20.79214932,235.5,235.42,28.22314932]
[1732713788145,20.79214932,235.52,235.44,20.79214932]
[1732713788448,20.79214932,235.54,235.46,20.79214932]
[1732713789036,20.79214932,235.56,235.48,20.79214932]
[1732713789335,20.79214932,235.58,235.5,20.79214932]
[1732713790351,10.6092,235.65,235.51,0.84684944]
[1732713790352,20.79214932,235.6,235.51,0.84684944]
[1732713790540,20.79214932,235.62,235.54,20.79214932]
[1732713790738,20.79214932,235.62,235.55,0.84669884]
[1732713790941,20.79214932,235.62,235.54,20.79214932]
[1732713791446,20.79214932,235.58,235.49,20.79214932]
[1732713792139,20.79214932,235.56,235.49,20.79214932]
[1732713792452,20.79214932,235.56,235.49,25.03854932]
[1732713792850,20.79214932,235.54,235.48,26.7515]
[1732713794153,20.79214932,235.5,235.43,18.78132212]
[1732713794337,25.03844932,235.5,235.43,17.9343]
[1732713794739,20.79214932,235.48,235.43,17.9343]
[1732713795752,20.79214932,235.48,235.43,22.1818]
[1732713796256,20.79214932,235.5,235.43,22.1818]
[1732713796556,20.79214932,235.5,235.43,43.82109421]
[1732713796730,25.03804932,235.52,235.43,43.82109421]
[1732713796934,25.03804932,235.52,235.43,42.97394932]
[1732713797159,20.79214932,235.48,235.43,17.9343]
[1732713797335,20.79214932,235.46,235.38,18.7865]
[1732713797840,20.79214932,235.46,235.38,23.0349]
[1732713798446,20.79214932,235.46,235.38,18.7865]
[1732713798447,25.03914932,235.46,235.38,18.7865]
[1732713798935,20.79214932,235.44,235.38,18.7865]
[1732713799254,20.79214932,235.44,235.37,7.7043]
[1732713799559,20.79214932,235.46,235.37,33.59230213]
[1732713800061,20.79214932,235.44,235.37,32.74494932]
[1732713800270,20.79214932,235.46,235.37,32.74494932]
[1732713800564,4.2467,235.48,235.4,4.248]
[1732713800565,20.79214932,235.48,235.4,4.248]
[1732713800856,25.03874932,235.48,235.4,4.248]
[1732713801648,20.79214932,235.5,235.41,20.79214932]
[1732713801852,20.79214932,235.5,235.43,20.79214932]
[1732713802363,20.79214932,235.5,235.41,20.79214932]
[1732713802560,20.79214932,235.5,235.42,4.2477]
[1732713803958,4.2464,235.49,235.41,25.88714246]
[1732713804146,20.79214932,235.48,235.4,4.248]
[1732713804353,20.79214932,235.48,235.41,20.79214932]
[1732713804562,20.79214932,235.5,235.41,20.79214932]
[1732713804763,20.79214932,235.5,235.43,20.79214932]
[1732713804975,20.79214932,235.52,235.44,0.84721983]
[1732713805142,20.79214932,235.52,235.4,4.248]
[1732713805460,20.79214932,235.49,235.4,25.04014932]
[1732713806445,20.79214932,235.49,235.4,17.24698847]
[1732713806446,12.99898847,235.49,235.4,17.24698847]
[1732713806763,17.24508847,235.51,235.42,12.99898847]
[1732713807634,12.99898847,235.51,235.43,0.84717512]
[1732713807839,12.99898847,235.56,235.37,11.9527]
[1732713807840,12.99898847,235.45,235.37,7.7043]
[1732713808052,0.2,235.54,235.37,7.7043]
[1732713808053,12.99898847,235.43,235.37,7.7043]
[1732713808264,12.99898847,235.39,235.27,26.19051032]
[1732713808454,12.99898847,235.39,235.3,12.99898847]
[1732713808966,12.99898847,235.37,235.28,17.24918847]
[1732713809263,12.99898847,235.41,235.32,12.99898847]
[1732713809963,17.24648847,235.43,235.34,12.99898847]
[1732713810157,17.24648847,235.43,235.34,17.24808847]
[1732713810661,12.99898847,235.41,235.29,0.84769762]
[1732713810862,12.99898847,235.37,235.27,13.84648325]
[1732713811067,12.99898847,235.37,235.27,18.09678325]
[1732713811241,12.99898847,235.37,235.29,12.99898847]
[1732713811438,12.99898847,235.39,235.29,12.99898847]
[1732713811966,12.99898847,235.39,235.31,12.99898847]
[1732713812151,17.24718847,235.39,235.29,12.99898847]
[1732713812345,12.99898847,235.37,235.29,12.99898847]
[1732713813164,17.24698847,235.41,235.33,12.99898847]
[1732713813686,17.24698847,235.41,235.31,12.99898847]
[1732713813845,12.99898847,235.32,235.26,18.3694]
[1732713814045,12.99898847,235.3,235.21,12.99898847]
[1732713814245,12.99898847,235.3,235.22,4.2513]
[1732713814452,12.99898847,235.3,235.21,12.99898847]
[1732713814648,12.99898847,235.28,235.2,31.1345]
[1732713815556,12.99898847,235.26,235.2,19.4591]
[1732713815758,12.99898847,235.26,235.18,4.2519]
[1732713816355,20.83955653,235.26,235.18,4.2519]
[1732713816556,20.83955653,235.26,235.17,20.83955653]
[1732713817573,20.83955653,235.26,235.18,4.252]
[1732713821565,20.83955653,235.24,235.18,4.252]
[1732713821764,20.83955653,235.24,235.15,32.66535653]
[1732713821970,20.83955653,235.22,235.15,11.8258]
[1732713824263,20.83955653,235.22,235.15,32.66535653]
[1732713825256,20.83955653,235.22,235.15,11.8258]
[1732713825462,20.83955653,235.17,235.1,4.2535]
[1732713825773,20.83955653,235.15,235.09,7.57]
[1732713825985,20.83955653,235.13,235.06,4.254]
[1732713826278,20.83955653,235.13,235.05,20.83955653]
[1732713826279,20.83955653,235.11,235.04,4.2544]
[1732713826452,20.83955653,235.09,235.03,25.7328]
[1732713826654,20.83955653,235.09,235.03,29.9875]
[1732713827570,20.83955653,235.11,235.03,29.9875]
[1732713827749,20.83955653,235.11,235.03,50.82705653]
[1732713828268,20.83955653,235.13,235.03,50.82705653]
[1732713829376,20.83955653,235.11,235.03,50.82705653]
[1732713829553,4.2511,235.23,235.1,20.83955653]
[1732713829760,25.09045653,235.24,235.15,20.83955653]
[1732713830459,20.83955653,235.22,235.13,20.83955653]
[1732713830660,25.09095653,235.22,235.13,25.09245653]
[1732713831981,20.83955653,235.29,235.2,20.83955653]
[1732713832360,20.83955653,235.33,235.24,20.83955653]
[1732713832880,20.83955653,235.33,235.25,4.2507]
[1732713833375,20.83955653,235.35,235.26,20.83955653]
[1732713833577,20.83955653,235.35,235.26,21.68728657]
[1732713833782,7.2693,235.5,235.34,20.83955653]
[1732713833958,20.83955653,235.46,235.38,20.83955653]
[1732713835574,25.08655653,235.46,235.38,20.83955653]
[1732713835780,25.08655653,235.46,235.36,25.08815653]
[1732713838082,25.08655653,235.46,235.36,20.83955653]
[1732713838260,20.83955653,235.4,235.31,20.83955653]
[1732713838461,4.247,235.46,235.29,26.3376]
[1732713838462,20.83955653,235.42,235.34,20.83955653]
[1732713839691,20.83955653,235.42,235.34,25.08865653]
[1732713840388,20.83955653,235.44,235.36,20.83955653]
[1732713841388,25.08695653,235.44,235.36,20.83955653]
[1732713841771,20.83955653,235.46,235.36,20.83955653]
[1732713841976,4.2459,235.52,235.44,20.83955653]
[1732713842176,25.08475653,235.56,235.48,20.83955653]
[1732713842579,25.08445653,235.58,235.5,20.83955653]
[1732713842875,30.0,235.51,235.46,20.83955653]
[1732713843091,20.83955653,235.56,235.46,20.83955653]
[1732713843291,20.83955653,235.56,235.48,20.83955653]
[1732713843486,25.08485653,235.56,235.48,20.83955653]
[1732713843988,20.83955653,235.54,235.45,19.0274]
[1732713844179,20.83955653,235.54,235.46,20.83955653]
[1732713845577,25.08515653,235.54,235.46,20.83955653]
[1732713846272,20.83955653,235.56,235.48,20.83955653]
[1732713846480,25.08435653,235.58,235.48,20.83955653]
[1732713846678,20.83955653,235.58,235.5,20.83955653]
[1732713846879,20.83955653,235.58,235.48,20.83955653]
[1732713847579,25.08445653,235.58,235.48,25.08605653]
[1732713848983,20.83955653,235.62,235.53,20.83955653]
[1732713849691,4.2437,235.64,235.47,20.83955653]
[1732713849692,20.83955653,235.56,235.47,20.83955653]
[1732713849880,20.83955653,235.54,235.46,4.2469]
[1732713850077,14.8531,235.64,235.47,20.83955653]
[1732713850078,20.83955653,235.56,235.47,20.83955653]
[1732713850893,25.08475653,235.56,235.47,25.08625653]
[1732713851098,20.83955653,235.52,235.43,25.93391249]
[1732713851394,20.83955653,235.5,235.41,25.08725653]
[1732713852281,4.2464,235.49,235.41,25.08725653]
[1732713852485,20.83955653,235.44,235.37,20.83955653]
[1732713852795,20.83955653,235.44,235.36,4.2487]
[1732713853198,20.83955653,235.42,235.35,25.93565253]
[1732713853495,20.83955653,235.42,235.35,20.83955653]
[1732713853677,20.83955653,235.42,235.33,20.83955653]
[1732713853867,20.83955653,235.38,235.32,7.7398]
[1732713854375,20.83955653,235.44,235.36,20.83955653]
[1732713854778,20.83955653,235.44,235.37,0.84734359]
[1732713855183,20.83955653,235.44,235.36,20.83955653]
[1732713855708,20.83955653,235.44,235.36,25.08815653]
[1732713857087,20.83955653,235.4,235.32,32.82885653]
[1732713858594,20.83955653,235.46,235.38,20.83955653]
[1732713859016,20.83955653,235.48,235.4,20.83955653]
[1732713859497,20.83955653,235.48,235.41,0.84720487]
[1732713860401,20.83955653,235.48,235.38,20.83955653]
[1732713860402,25.08625653,235.48,235.38,20.83955653]
[1732713860592,20.83955653,235.44,235.36,25.08825653]
[1732713860903,20.83955653,235.46,235.38,20.83955653]
[1732713862090,20.83955653,235.46,235.39,4.2482]
[1732713862290,20.83955653,235.48,235.4,20.83955653]
[1732713862800,20.83955653,235.48,235.4,21.68678835]
[1732713863003,20.83955653,235.52,235.44,20.83955653]
[1732713863599,20.83955653,235.5,235.42,20.83955653]
[1732713863807,20.83955653,235.5,235.42,21.68666576]
[1732713864100,20.83955653,235.5,235.43,4.2475]
[1732713864403,20.83955653,235.5,235.44,0.84710387]
[1732713864609,20.83955653,235.54,235.44,21.6866604]
[1732713865288,20.83955653,235.52,235.44,21.6866604]
[1732713865893,20.83955653,235.52,235.45,4.2471]
[1732713868691,20.83955653,235.52,235.46,7.5766]
[1732713868891,20.83955653,235.52,235.46,11.8235]
[1732713869591,20.83955653,235.52,235.46,7.5766]
[1732713869903,20.83955653,235.5,235.4,29.48236246]
[1732713870109,20.83955653,235.48,235.4,33.73026246]
[1732713872699,20.83955653,235.46,235.4,12.89070593]
[1732713872907,20.83955653,235.46,235.4,12.0436]
[1732713873207,4.2467,235.48,235.37,4.2485]
[1732713873208,20.83955653,235.44,235.37,4.2485]
[1732713873809,20.83955653,235.44,235.36,20.83955653]
[1732713873997,4.2467,235.48,235.34,8.66995633]
[1732713873998,20.83955653,235.42,235.35,4.2489]
[1732713876112,20.83955653,235.44,235.36,20.83955653]
[1732713876293,20.83955653,235.44,235.36,21.68692938]
[1732713876815,20.83955653,235.44,235.37,4.2486]
[1732713878608,20.83955653,235.42,235.37,4.2486]
[1732713878815,20.83955653,235.42,235.35,4.2489]
[1732713879115,20.83955653,235.42,235.34,12.0716]
[1732713879806,25.08725653,235.42,235.34,12.0716]
[1732713880910,20.83955653,235.42,235.34,12.0716]
[1732713882318,13.00662977,235.42,235.34,12.0716]
[1732713882499,13.00662977,235.4,235.34,7.8226]
[1732713882706,13.00662977,235.38,235.33,18.6226]
[1732713883018,13.00662977,235.38,235.33,22.8718]
[1732713883195,13.00662977,235.38,235.33,18.6226]
[1732713883598,13.00662977,235.38,235.33,22.8718]
[1732713884407,13.00662977,235.4,235.33,22.8718]
[1732713884919,13.00662977,235.4,235.33,35.87842977]
[1732713885102,13.00662977,235.42,235.34,0.84755692]
[1732713885806,13.00662977,235.42,235.33,35.87842977]
[1732713886115,13.00662977,235.4,235.33,22.8718]
[1732713886301,13.00662977,235.38,235.29,13.00662977]
[1732713887210,13.00662977,235.34,235.28,7.6949]
[1732713887714,13.00662977,235.34,235.28,11.945]
[1732713888115,14.8671,235.42,235.28,12.79272711]
[1732713888116,13.00662977,235.36,235.28,12.79272711]
[1732713889101,17.25452977,235.41,235.31,13.00662977]
[1732713890122,17.25452977,235.41,235.32,4.2495]
[1732713890319,13.00662977,235.41,235.33,13.85417728]
[1732713891018,4.248,235.4,235.32,4.2495]
[1732713891327,13.00662977,235.39,235.31,18.10383689]
[1732713891507,4.248,235.41,235.31,18.10383689]
[1732713891508,17.25462977,235.41,235.31,18.10383689]
[1732713891825,17.25462977,235.41,235.31,17.25622977]
[1732713892417,17.25462977,235.41,235.28,8.54241827]
[1732713892418,13.00662977,235.41,235.33,13.00662977]
[1732713892920,13.00662977,235.43,235.35,13.00662977]
[1732713893620,13.00662977,235.45,235.37,13.00662977]
[1732713893830,17.25382977,235.45,235.37,13.00662977]
[1732713894311,13.00662977,235.43,235.35,13.00662977]
[1732713894630,13.00662977,235.43,235.36,4.2488]
[1732713895712,13.00662977,235.41,235.33,17.25592977]
[1732713896629,13.00662977,235.41,235.33,13.00662977]
[1732713897348,13.00662977,235.43,235.35,13.00662977]